bitfinex/quotes_BTCUSD_20250218
["timestamp","ask_amount","ask_price","bid_price","bid_amount"]
[1739896617156,0.3629083,94996.0,94995.0,0.0001705]
[1739896617366,0.11460915,94996.0,94963.0,0.210606]
[1739896617565,0.157908,94993.0,94974.0,0.157937]
[1739896617770,0.31748365,94992.0,94973.0,0.240339]
[1739896617976,0.215708,94991.0,94975.0,0.157936]
[1739896618201,0.00622656,94981.0,94973.0,0.0824]
[1739896618419,0.00622656,94981.0,94980.0,0.157927]
[1739896618834,0.00622656,94981.0,94980.0,0.180927]
[1739896619039,0.05660712,94981.0,94980.0,0.180927]
[1739896619515,0.05660712,94981.0,94980.0,0.2844834]
[1739896619741,0.05660712,94981.0,94980.0,0.28343065]
[1739896619950,0.04422431,94981.0,94980.0,0.3859343]
[1739896620156,0.04422431,94981.0,94980.0,0.386105]
[1739896620368,0.12388144,94990.0,94989.0,0.157913]
[1739896620576,0.12388144,94990.0,94989.0,0.28341665]
[1739896620781,0.09207892,94990.0,94989.0,0.36228868]
[1739896620994,0.09207892,94990.0,94989.0,0.180913]
[1739896621864,0.09207892,94990.0,94989.0,0.023]
[1739896622080,0.09207892,94990.0,94980.0,0.0001707]
[1739896622717,0.09207892,94990.0,94983.0,0.023]
[1739896622922,0.09207892,94990.0,94980.0,0.0001707]
[1739896623139,0.0096743,94989.0,94980.0,0.0001707]
[1739896623343,0.0096743,94989.0,94981.0,0.02652117]
[1739896623566,0.0096743,94989.0,94988.0,0.023]
[1739896623981,0.0096743,94989.0,94988.0,0.12550365]
[1739896624186,0.0096743,94989.0,94988.0,0.40050365]
[1739896624418,0.0096743,94989.0,94988.0,0.40760733]
[1739896624637,0.00013172,94995.0,94994.0,0.307904]
[1739896624858,0.00013172,94995.0,94994.0,0.53176888]
[1739896625068,0.00968877,95034.0,95032.0,0.15784]
[1739896625286,0.00982144,95034.0,95033.0,0.3016]
[1739896625489,0.00982144,95034.0,95033.0,0.3066313]
[1739896625720,0.00013267,95034.0,95033.0,0.3066313]
[1739896625931,0.00013267,95034.0,95033.0,0.58186088]
[1739896626155,0.09207892,95056.0,95033.0,0.58186088]
[1739896626156,0.09207892,95056.0,95034.0,0.173]
[1739896626329,0.09207892,95056.0,95036.0,0.330834]
[1739896626549,0.01648713,95069.0,95045.0,0.210426]
[1739896626748,0.09207892,95086.0,95060.0,0.023]
[1739896626968,0.01648225,95084.0,95081.0,0.157758]
[1739896627175,0.01648225,95084.0,95077.0,0.023]
[1739896627398,0.01648225,95084.0,95083.0,0.157756]
[1739896627814,0.02,95071.0,95035.0,0.02]
[1739896628022,0.2,95041.0,94994.0,0.09836123]
[1739896628231,0.5354659,94961.0,94960.0,0.33539167]
[1739896628434,0.04213223,94961.0,94960.0,0.50313269]
[1739896628582,0.04213223,94972.0,94971.0,0.157942]
[1739896628787,0.01649034,95030.0,94961.0,0.00105283]
[1739896628990,0.2,95027.0,94980.0,0.34517169]
[1739896629190,0.01649034,95030.0,94980.0,0.34517169]
[1739896629191,0.11428976,95026.0,94980.0,0.34517169]
[1739896629390,0.344028,95025.0,94990.0,0.34517169]
[1739896629619,0.344028,95025.0,94980.0,0.34517169]
[1739896629820,0.157913,94989.0,94960.0,0.34517169]
[1739896629973,0.00105176,94988.0,94969.0,0.157945]
[1739896630181,0.00105176,95013.0,94961.0,0.210612]
[1739896630383,0.257032,95012.0,94970.0,0.34517169]
[1739896630601,0.01649126,95017.0,94991.0,0.023]
[1739896630806,0.01649126,95017.0,95001.0,0.023]
[1739896631018,0.01649126,95017.0,95002.0,0.00105257]
[1739896631229,0.0481,95049.0,95017.0,0.023]
[1739896631456,0.01648841,95040.0,95038.0,0.157829]
[1739896631666,0.157802,95056.0,95039.0,0.023]
[1739896631874,0.157781,95068.0,95036.0,0.157833]
[1739896632076,0.01648667,95051.0,95021.0,0.023]
[1739896632301,0.2,95069.0,95021.0,0.023]
[1739896632302,0.01208594,95076.0,95037.0,0.210443]
[1739896632508,0.157791,95063.0,95040.0,0.34517169]
[1739896632723,0.01085612,95083.0,95040.0,0.34517169]
[1739896632724,0.0481,95077.0,95040.0,0.34517169]
[1739896632928,0.154658,95076.0,95041.0,0.00105209]
[1739896633133,0.207421,95076.0,95040.0,0.34517169]
[1739896633340,0.10250365,95075.0,95041.0,0.03556915]
[1739896633537,0.10250365,95075.0,95058.0,0.023]
[1739896633750,0.10250365,95075.0,95059.0,0.210395]
[1739896633952,0.26027465,95075.0,95054.0,0.157804]
[1739896634159,0.10250365,95075.0,95055.0,0.0157804]
[1739896634582,0.157774,95073.0,95044.0,0.233428]
[1739896634788,0.80673541,95072.0,95040.0,0.0756]
[1739896635043,0.157801,95057.0,95027.0,0.157849]
[1739896635245,0.10250365,95072.0,95029.0,0.173]
[1739896635451,0.10250365,95072.0,95025.0,0.1235]
[1739896635452,0.10250365,95072.0,95045.0,0.0841866]
[1739896635709,0.172573,95071.0,95046.0,0.12655568]
[1739896635923,0.00105176,95070.0,95026.0,0.02076866]
[1739896636137,0.10250365,95069.0,95027.0,0.12534918]
[1739896636375,1.114245,95068.0,95027.0,0.12534918]
[1739896636610,2.12523565,95067.0,95025.0,0.0756]
[1739896636870,0.01648329,95058.0,95025.0,0.0756]
[1739896637075,0.01648329,95058.0,95030.0,0.34517169]
[1739896637296,0.00013265,95077.0,95036.0,0.0841866]
[1739896637516,0.01648196,95073.0,95047.0,0.023]
[1739896637720,0.01648196,95073.0,95069.0,0.157779]
[1739896637943,0.00013265,95077.0,95058.0,0.00105176]
[1739896638146,0.00013265,95077.0,95059.0,0.10250365]
[1739896638351,0.00013265,95077.0,95069.0,0.023]
[1739896638584,0.00013265,95077.0,95070.0,0.00105168]
[1739896638709,0.00013265,95077.0,95072.0,0.023]
[1739896638923,0.00013265,95077.0,95076.0,0.157768]
[1739896639124,0.00013265,95077.0,95075.0,0.157769]
[1739896639326,0.00013265,95077.0,95076.0,0.02405165]
[1739896639536,0.00013265,95077.0,95076.0,0.023]
[1739896639759,0.00013265,95077.0,95073.0,0.023]
[1739896639955,0.00013265,95077.0,95065.0,0.0826]
[1739896639956,0.00013265,95077.0,95065.0,0.292981]
[1739896640209,0.00013265,95077.0,95066.0,0.10250365]
[1739896640600,0.00013265,95077.0,95076.0,0.023]
[1739896640755,0.00013265,95077.0,95076.0,0.14463211]
[1739896641156,0.00013265,95077.0,95076.0,0.14463205]
[1739896641362,0.00013265,95077.0,95076.0,0.14358055]
[1739896641560,0.00013265,95077.0,95060.0,0.34517169]
[1739896641767,0.00013265,95077.0,95069.0,0.15]
[1739896641967,0.00013265,95077.0,95072.0,0.023]
[1739896642197,0.00013265,95077.0,95066.0,0.15]
[1739896642396,0.00013265,95077.0,95068.0,0.15]
[1739896642627,0.00013265,95077.0,95068.0,0.023]
[1739896642823,0.157771,95075.0,95050.0,0.0764]
[1739896643034,0.00013265,95077.0,95051.0,0.10250365]
[1739896643237,0.10250365,95075.0,95036.0,0.0764]
[1739896643381,0.10250365,95075.0,95037.0,0.12592725]
[1739896643580,0.0841866,95043.0,95028.0,0.00105193]
[1739896643786,0.0841866,95043.0,94992.0,0.0462]
[1739896643787,0.210435,95041.0,94992.0,0.0462]
[1739896644013,1.47638199,95040.0,94987.0,0.0828]
[1739896644211,0.18669025,95034.0,94988.0,0.00828]
[1739896644447,0.157862,95020.0,94988.0,0.11078365]
[1739896644695,0.10250365,95019.0,94992.0,0.157908]
[1739896644892,0.210394,95060.0,94993.0,0.15370532]
[1739896645106,0.10250365,95039.0,94993.0,0.10355616]
[1739896645315,0.10250365,95039.0,95011.0,0.157875]
[1739896645521,0.419106,95038.0,94994.0,0.15]
[1739896645722,0.157861,95021.0,94995.0,0.12859528]
[1739896645951,0.01648803,95033.0,94995.0,0.12859528]
[1739896646152,0.157844,95031.0,95003.0,0.210517]
[1739896646368,0.157856,95024.0,94997.0,0.157898]
[1739896646559,0.10250365,95023.0,94998.0,0.0497165]
[1739896646752,0.10250365,95023.0,94993.0,0.00013267]
[1739896646962,0.01648803,95033.0,94994.0,0.10355615]
[1739896647162,0.10250365,95032.0,94995.0,0.023]
[1739896647355,0.157861,95021.0,94997.0,0.023]
[1739896647581,0.10250365,95020.0,94993.0,0.00013267]
[1739896647993,0.805651,95019.0,94993.0,0.00013267]
[1739896648195,0.10250365,95018.0,94993.0,0.00013267]
[1739896648407,0.21049,95016.0,94993.0,0.00013267]
[1739896648615,0.01648851,95023.0,94993.0,0.00013267]
[1739896648824,0.210456,95032.0,94995.0,0.023]
[1739896649024,0.01649118,95021.0,94996.0,0.10250365]
[1739896649235,0.10250365,95031.0,94997.0,0.157899]
[1739896649447,0.10250365,95031.0,94995.0,0.023]
[1739896649650,0.0164893,95020.0,95003.0,0.157888]
[1739896649855,0.0164893,95020.0,95005.0,0.157886]
[1739896650063,0.0164893,95020.0,95002.0,0.023]
[1739896650274,0.0164893,95020.0,94996.0,0.16268799]
[1739896650483,0.157865,95018.0,94993.0,0.00013267]
[1739896650695,0.11899295,95020.0,94993.0,0.00013267]
[1739896650696,0.0164893,95020.0,94995.0,0.023]
[1739896650906,0.0164893,95020.0,94997.0,0.023]
[1739896651107,0.0164893,95020.0,95005.0,0.157885]
[1739896651319,0.0164893,95020.0,94999.0,0.023]
[1739896651550,0.157872,95014.0,94999.0,0.023]
[1739896651781,0.01743613,95014.0,94980.0,0.34534239]
[1739896651987,0.157865,95018.0,94996.0,0.1579]
[1739896652195,0.0164893,95020.0,95004.0,0.157887]
[1739896652427,0.0164893,95020.0,94996.0,0.210535]
[1739896652635,0.0164893,95020.0,95007.0,0.157881]
[1739896652844,0.0164893,95020.0,95009.0,0.157878]
[1739896653071,0.3286,95041.0,95008.0,0.0157881]
[1739896653288,0.10250365,95040.0,95006.0,0.023]
[1739896653512,0.10250365,95040.0,95013.0,0.157872]
[1739896653727,0.10250365,95040.0,95011.0,0.023]
[1739896653728,0.210442,95038.0,95011.0,0.023]
[1739896653943,0.18770142,95037.0,94999.0,0.157895]
[1739896654163,0.260039,95036.0,95006.0,0.023]
[1739896654351,0.52318565,95035.0,95001.0,0.023]
[1739896654555,0.10250365,95035.0,95003.0,0.023]
[1739896654782,0.10250365,95035.0,94994.0,0.00105237]
[1739896654783,0.10250365,95035.0,94994.0,0.210539]
[1739896654988,0.157857,95023.0,95002.0,0.15789]
[1739896655208,0.31295265,95035.0,94999.0,0.157895]
[1739896655424,0.157863,95019.0,94997.0,0.023]
[1739896655642,0.10250365,95018.0,94993.0,0.00013267]
[1739896655845,0.31298965,95018.0,94993.0,0.00013267]
[1739896656051,0.17436172,95014.0,94993.0,0.00013267]
[1739896656261,0.01648972,95014.0,94993.0,0.00013267]
[1739896656695,0.01648972,95014.0,94993.0,0.02120084]
[1739896656906,0.01648972,95014.0,94993.0,0.00013267]
[1739896657373,0.01648972,95014.0,94997.0,0.157898]
[1739896657569,0.01648972,95014.0,94994.0,0.210539]
[1739896657791,0.01648972,95014.0,94996.0,0.023]
[1739896657992,0.01648972,95014.0,94998.0,0.233529]
[1739896658198,0.01648972,95014.0,95005.0,0.157886]
[1739896658409,0.01648972,95014.0,95004.0,0.157887]
[1739896658617,0.01648972,95014.0,95002.0,0.157889]
[1739896658823,0.01648972,95014.0,94998.0,0.180897]
[1739896659025,0.01648972,95014.0,94997.0,0.023]
[1739896659233,0.01648972,95014.0,94997.0,0.03361723]
[1739896659436,0.01191042,95046.0,95000.0,0.34517169]
[1739896659639,0.157843,95031.0,95012.0,0.157873]
[1739896659839,0.01649019,95029.0,95002.0,0.210521]
[1739896660079,0.01649019,95029.0,95015.0,0.157868]
[1739896660291,0.01649019,95029.0,95003.0,0.10250365]
[1739896660292,0.01649019,95029.0,95018.0,0.157864]
[1739896660491,0.01649019,95029.0,95005.0,0.210515]
[1739896660701,0.01649019,95029.0,95006.0,0.03130186]
[1739896660905,0.10250365,95028.0,94999.0,0.210528]
[1739896661108,0.10250365,95028.0,94998.0,0.0755]
[1739896661522,0.255941,95027.0,94985.0,0.0802]
[1739896661740,0.10250365,95026.0,94985.0,0.0802]
[1739896661937,0.395875,95025.0,94989.0,0.21055]
[1739896662151,0.15788,95009.0,94993.0,0.15803667]
[1739896662356,0.01649046,95018.0,94993.0,0.00013267]
[1739896662578,0.10250365,95017.0,94993.0,0.00013267]
[1739896662787,0.149673,95016.0,94993.0,0.00013267]
[1739896662995,0.27485665,95015.0,94993.0,0.00013267]
[1739896663205,0.436018,95014.0,94993.0,0.00013267]
[1739896663405,0.157891,95002.0,94993.0,0.00013267]
[1739896663635,0.10250365,95013.0,94993.0,0.00013267]
[1739896663954,0.157888,95005.0,94993.0,0.00013267]
[1739896664175,0.157884,95006.0,94993.0,0.00013267]
[1739896664538,0.157886,95005.0,94993.0,0.00013267]
[1739896664675,0.157889,95004.0,94993.0,0.00013267]
[1739896664900,0.210499,95012.0,94993.0,0.00013267]
[1739896665299,0.157904,94994.0,94993.0,0.00013267]
[1739896665718,0.210525,95001.0,94993.0,0.00013267]
[1739896665937,0.157904,94994.0,94993.0,0.00013267]
[1739896666371,0.01649399,95001.0,94993.0,0.00013267]
[1739896666791,0.01189938,95027.0,94993.0,0.21067367]
[1739896667002,0.24399465,95026.0,94993.0,0.00013267]
[1739896667212,0.24399465,95026.0,95002.0,0.157891]
[1739896667213,0.0164927,95018.0,95002.0,0.157891]
[1739896667412,0.0164927,95018.0,95002.0,0.00105255]
[1739896667641,0.0164927,95018.0,94999.0,0.0753]
[1739896667846,0.0164927,95018.0,95001.0,0.210524]
[1739896668058,0.0164927,95018.0,94999.0,0.0753]
[1739896668269,0.0164927,95018.0,95008.0,0.15788]
[1739896668484,0.0164927,95018.0,95009.0,0.157879]
[1739896668709,0.0164927,95018.0,94993.0,0.00030327]
[1739896668906,0.210488,95017.0,95000.0,0.157893]
[1739896669081,0.0164927,95018.0,94993.0,0.00030327]
[1739896669082,0.0164927,95018.0,94995.0,0.023]
[1739896669293,0.0164927,95018.0,94996.0,0.210535]
[1739896669503,0.0164927,95018.0,95006.0,0.157883]
[1739896669716,0.1743577,95018.0,95006.0,0.157883]
[1739896670047,0.0164927,95018.0,94995.0,0.023]
[1739896670247,0.157876,95012.0,94996.0,0.02594354]
[1739896670454,0.0164927,95018.0,94980.0,0.0001707]
[1739896670455,0.210488,95017.0,94980.0,0.0001707]
[1739896670661,0.210505,95010.0,94980.0,0.0001707]
[1739896670876,0.10250365,95009.0,94995.0,0.157902]
[1739896671094,0.157883,95007.0,94989.0,0.210549]
[1739896671289,0.157885,95006.0,94995.0,0.157902]
[1739896671487,0.0164927,95018.0,94993.0,0.00030327]
[1739896671697,0.10250365,95017.0,94994.0,0.02108523]
[1739896671892,0.21049,95016.0,95004.0,0.157887]
[1739896672144,0.26037265,95015.0,95004.0,0.157887]
[1739896672492,0.31299665,95015.0,94994.0,0.02108523]
[1739896672620,0.210495,95014.0,94995.0,0.210537]
[1739896672821,0.10250365,95013.0,94993.0,0.00030327]
[1739896673227,0.210501,95011.0,94993.0,0.00030327]
[1739896673544,0.2,95026.0,94993.0,0.00030327]
[1739896673545,0.10250365,95010.0,94993.0,0.00030327]
[1739896673746,0.210514,95006.0,94993.0,0.00030327]
[1739896673947,0.15789,95003.0,94993.0,0.00030327]
[1739896674156,0.3286,95041.0,95002.0,0.0802]
[1739896674331,0.157854,95025.0,95014.0,0.157871]
[1739896674534,0.157835,95036.0,95025.0,0.157851]
[1739896674712,0.10250365,95035.0,95003.0,0.02405237]
[1739896674918,0.10250365,95035.0,95005.0,0.023]
[1739896675159,0.31295265,95035.0,95005.0,0.023]
[1739896675357,0.157843,95031.0,95023.0,0.157856]
[1739896675568,0.10250365,95035.0,95006.0,0.10250365]
[1739896675768,0.10250365,95035.0,95008.0,0.023]
[1739896676155,0.01648856,95030.0,95008.0,0.023]
[1739896676593,0.157852,95026.0,95008.0,0.023]
[1739896676826,0.01648856,95030.0,95006.0,0.00013267]
[1739896677033,0.10250365,95029.0,95006.0,0.00013267]
[1739896677247,0.10250365,95029.0,95007.0,0.00803327]
[1739896677659,0.210464,95028.0,95007.0,0.00803327]
[1739896677867,0.10250365,95028.0,95007.0,0.00803327]
[1739896678067,0.157853,95026.0,95007.0,0.00803327]
[1739896678268,0.10250365,95028.0,95016.0,0.157866]
[1739896678471,0.10250365,95028.0,95017.0,0.0157866]
[1739896678472,0.210466,95027.0,95017.0,0.0157866]
[1739896678682,0.157857,95023.0,95014.0,0.15787]
[1739896678883,0.10250365,95028.0,95007.0,0.00803327]
[1739896679093,0.157852,95026.0,95016.0,0.157867]
[1739896679301,0.15785,95027.0,95008.0,0.210508]
[1739896679516,0.01648856,95030.0,95009.0,0.02988739]
[1739896679725,0.01648856,95030.0,95022.0,0.157857]
[1739896680468,0.01648856,95030.0,95021.0,0.157858]
[1739896680679,0.01648856,95030.0,95011.0,0.210501]
[1739896680909,0.01648856,95030.0,95009.0,0.02988739]
[1739896681109,0.01648856,95030.0,95011.0,0.023]
[1739896681484,0.157853,95025.0,95014.0,0.210495]
[1739896681690,0.157853,95025.0,95000.0,0.34517169]
[1739896681691,0.01648856,95030.0,94994.0,0.210537]
[1739896681933,0.69949265,95029.0,94990.0,0.0804]
[1739896682142,0.69949265,95029.0,94987.0,0.210554]
[1739896682143,0.504712,95028.0,94980.0,0.02159884]
[1739896682311,0.02196302,95020.0,95000.0,0.34517169]
[1739896682570,0.02196302,95020.0,95019.0,0.157863]
[1739896682934,0.01196302,95020.0,95019.0,0.157863]
[1739896684353,0.01196302,95020.0,95006.0,0.00013267]
[1739896684534,0.01196302,95020.0,95006.0,0.21064267]
[1739896684745,0.01196302,95020.0,95011.0,0.157876]
[1739896684945,0.157865,95018.0,95007.0,0.21051]
[1739896685160,0.01196302,95020.0,95012.0,0.157873]
[1739896685368,0.01196302,95020.0,95008.0,0.210506]
[1739896685583,0.01196302,95020.0,95006.0,0.00013267]
[1739896685780,0.157883,95007.0,95006.0,0.00013267]
[1739896685982,0.01196302,95020.0,95006.0,0.00013267]
[1739896685983,0.210498,95013.0,95006.0,0.00013267]
[1739896686234,0.01196302,95020.0,95006.0,0.00013267]
[1739896686403,0.157879,95010.0,95007.0,0.01580217]
[1739896686602,0.157883,95007.0,95006.0,0.00013267]
[1739896687274,0.01649156,95009.0,95006.0,0.00013267]
[1739896687474,0.01649156,95009.0,95006.0,0.15801667]
[1739896687687,0.01649156,95009.0,95007.0,0.157881]
[1739896687903,0.01196302,95020.0,95008.0,0.03685277]
[1739896688126,0.01196302,95020.0,95010.0,0.157877]
[1739896688344,0.01196302,95020.0,95006.0,0.00013267]
[1739896688557,0.157881,95008.0,95006.0,0.00013267]
[1739896689378,0.157872,95014.0,95006.0,0.00013267]
[1739896689592,0.01649151,95011.0,95010.0,0.157878]
[1739896690011,0.01649151,95011.0,95006.0,0.00013267]
[1739896690228,0.157879,95010.0,94980.0,0.22377577]
[1739896690433,0.01649151,95011.0,94981.0,0.10355615]
[1739896690636,0.01649151,95011.0,95006.0,0.157884]
[1739896691053,0.01645151,95011.0,95006.0,0.157884]
[1739896691257,0.01645151,95011.0,94970.0,0.27626571]
[1739896691430,0.01645151,95011.0,94983.0,0.10939877]
[1739896691660,0.157878,95010.0,94983.0,0.10939877]
[1739896691864,0.157878,95010.0,94998.0,0.210528]
[1739896692138,0.157881,95008.0,95006.0,0.0001706]
[1739896692557,0.10250365,95007.0,95006.0,0.0001706]
[1739896692971,0.2105,95012.0,95006.0,0.0001706]
[1739896692972,0.15,95027.0,95006.0,0.0001706]
[1739896693206,0.10250365,95019.0,95006.0,0.0001706]
[1739896693425,0.0003412,95030.0,95006.0,0.0001706]
[1739896693631,0.210497,95014.0,95006.0,0.0001706]
[1739896693833,0.10250365,95019.0,95006.0,0.0001706]
[1739896694264,0.2108012,95030.0,95006.0,0.0001706]
[1739896694463,0.157871,95015.0,95006.0,0.0001706]
[1739896694678,0.43457697,95030.0,95008.0,0.15788]
[1739896694890,0.15787,95015.0,95006.0,0.1580536]
[1739896695102,0.15787,95015.0,95007.0,0.157882]
[1739896695357,0.157863,95019.0,95006.0,0.0001706]
[1739896695562,0.22244502,95020.0,95006.0,0.0001706]
[1739896695791,0.01196302,95020.0,95012.0,0.157873]
[1739896696006,0.01196302,95020.0,95008.0,0.00105246]
[1739896696211,0.01196302,95020.0,95016.0,0.157867]
[1739896696423,0.01196302,95020.0,95018.0,0.157864]
[1739896696635,0.01196302,95020.0,95018.0,0.1946995]
[1739896698096,0.01196302,95020.0,95018.0,0.157864]
[1739896698654,0.01196302,95020.0,95018.0,0.157863]
[1739896699679,0.01196302,95020.0,94998.0,0.0841866]
[1739896699883,0.01196302,95020.0,95018.0,0.157864]
[1739896700054,0.01196302,95020.0,95019.0,0.157863]
[1739896700458,0.01196302,95020.0,95013.0,0.210497]
[1739896700658,0.01196302,95020.0,95019.0,0.157863]
[1739896705487,0.01230422,95020.0,95019.0,0.157863]
[1739896706312,0.01230422,95020.0,94980.0,0.22377577]
[1739896706488,0.01230422,95020.0,94995.0,0.16183001]
[1739896706808,0.01230422,95020.0,95019.0,0.157863]
[1739896707546,0.01230422,95020.0,95014.0,0.15787]
[1739896707762,0.01230422,95020.0,94968.0,0.031635]
[1739896707763,0.01230422,95020.0,94985.0,0.210557]
[1739896707960,0.157863,95019.0,95011.0,0.157874]
[1739896708171,0.01230422,95020.0,95016.0,0.157867]
[1739896708388,0.01230422,95020.0,95006.0,0.0001706]
[1739896708575,0.01230422,95020.0,95016.0,0.157867]
[1739896709210,0.01230422,95020.0,95007.0,0.02106886]
[1739896709658,0.01230422,95020.0,95014.0,0.15787]
[1739896709871,0.157863,95019.0,95007.0,0.02106886]
[1739896710047,0.01230422,95020.0,95007.0,0.02106886]
[1739896710249,0.01230422,95020.0,95015.0,0.157868]
[1739896710461,0.01230422,95020.0,95014.0,0.210494]
[1739896710634,0.01230422,95020.0,95008.0,0.02317575]
[1739896710839,19.01230422,95020.0,95019.0,0.157863]
[1739896711056,19.01230422,95020.0,95006.0,0.0001706]
[1739896711225,19.01230422,95020.0,95019.0,0.157863]
[1739896714140,16.27545968,95020.0,95019.0,0.52451809]
[1739896714347,16.12470868,95020.0,95019.0,0.53619941]
[1739896714736,16.11341654,95020.0,95019.0,0.53619941]
[1739896715314,15.83394845,95020.0,95019.0,0.53619941]
[1739896717177,15.83394845,95020.0,95019.0,0.10250365]
[1739896717436,15.83394845,95020.0,95018.0,0.157864]
[1739896718075,15.83428885,95020.0,95018.0,0.157864]
[1739896718514,15.83428885,95020.0,95019.0,0.12550365]
[1739896718755,15.83428885,95020.0,95019.0,0.27550365]
[1739896719638,15.83428885,95020.0,95019.0,0.10250365]
[1739896720645,15.83428885,95020.0,95015.0,0.0001702]
[1739896720854,15.83428885,95020.0,95018.0,0.157864]
[1739896721007,15.83428885,95020.0,95015.0,0.10267385]
[1739896721410,15.83428885,95020.0,95016.0,0.157867]
[1739896721613,15.83428885,95020.0,95019.0,0.162863]
[1739896722165,15.83428885,95020.0,95019.0,0.005]
[1739896726266,15.83428885,95020.0,95019.0,0.00489691]
[1739896726658,15.99214985,95020.0,95019.0,0.00489691]
[1739896727347,15.85077762,95020.0,95019.0,0.00489691]
[1739896727525,15.83428885,95020.0,95019.0,0.16275991]
[1739896727756,15.83428885,95020.0,95019.0,0.26526356]
[1739896728406,15.83428885,95020.0,95019.0,0.28826356]
[1739896728616,15.83428885,95020.0,95019.0,0.43826356]
[1739896729257,15.8209187,95020.0,95019.0,0.43826356]
[1739896729469,13.42563537,95020.0,95019.0,1.30446356]
[1739896729674,10.22658404,95020.0,95019.0,1.34446356]
[1739896729884,7.15926634,95020.0,95019.0,1.34446356]
[1739896730097,5.65946634,95020.0,95019.0,1.34446356]
[1739896730304,5.65019466,95020.0,95019.0,1.34446356]
[1739896730734,5.61419466,95020.0,95019.0,1.34446356]
[1739896730909,5.59169466,95020.0,95019.0,1.34446356]
[1739896731339,3.96343649,95020.0,95019.0,1.34446356]
[1739896731542,3.25093584,95020.0,95019.0,1.42216356]
[1739896731744,3.01808696,95020.0,95019.0,1.42216356]
[1739896731947,3.00266685,95020.0,95019.0,1.42216356]
[1739896732152,2.91030113,95020.0,95019.0,1.42216356]
[1739896732356,2.87820113,95020.0,95019.0,1.42216356]
[1739896732771,2.82820113,95020.0,95019.0,1.42216356]
[1739896733179,2.81320113,95020.0,95019.0,1.42216356]
[1739896733599,2.59581789,95020.0,95019.0,1.42216356]
[1739896733804,2.43690394,95020.0,95019.0,1.42216356]
[1739896734006,2.41580394,95020.0,95019.0,1.42216356]
[1739896734624,2.37390394,95020.0,95019.0,1.42216356]
[1739896735034,2.34227506,95020.0,95019.0,1.42216356]
[1739896735470,2.34227506,95020.0,95019.0,1.32446356]
[1739896735680,2.34227506,95020.0,95019.0,1.13146356]
[1739896735899,2.34227506,95020.0,95019.0,0.43650056]
[1739896736080,2.34227506,95020.0,95019.0,0.10740056]
[1739896736526,2.34227506,95020.0,95019.0,0.00489691]
[1739896738370,2.34227506,95020.0,95019.0,0.10740056]
[1739896738981,2.34227506,95020.0,95019.0,0.28040056]
[1739896739153,2.34227506,95020.0,95019.0,0.60950056]
[1739896741171,2.34227506,95020.0,95019.0,0.60967076]
[1739896741571,2.34227506,95020.0,95019.0,0.43667076]
[1739896741773,2.47407506,95020.0,95019.0,0.00506711]
[1739896742177,0.157868,95016.0,95015.0,0.0001702]
[1739896742354,0.210494,95015.0,95006.0,0.00011427]
[1739896742555,0.0841866,95008.0,95006.0,0.00011427]
[1739896742757,0.0491,95007.0,95006.0,0.00011427]
[1739896744412,0.1274,95007.0,95006.0,0.00011427]
[1739896745034,0.14389159,95007.0,95006.0,0.00011427]
[1739896745233,0.14389159,95007.0,94981.0,0.3291]
[1739896745382,0.0841866,94992.0,94971.0,0.0001707]
[1739896745606,0.22373402,94990.0,94971.0,0.10267435]
[1739896745830,0.0841866,94982.0,94972.0,0.00691918]
[1739896746028,0.0841866,94982.0,94956.0,0.15]
[1739896746243,0.0841866,94972.0,94957.0,0.10946017]
[1739896746465,0.0768,94961.0,94957.0,0.10946017]
[1739896747488,0.07686504,94961.0,94957.0,0.10946017]
[1739896748996,6.504e-05,94961.0,94959.0,0.157961]
[1739896749201,6.504e-05,94961.0,94960.0,0.11053357]
[1739896749416,0.04529125,94971.0,94961.0,0.180959]
[1739896749621,0.04529125,94971.0,94963.0,0.023]
[1739896749828,0.04529125,94971.0,94964.0,0.00698639]
[1739896750243,0.0841866,94968.0,94964.0,0.00698639]
[1739896750445,0.0841866,94968.0,94960.0,0.00043949]
[1739896751076,0.157958,94962.0,94960.0,0.00043949]
[1739896751803,0.0841466,94968.0,94960.0,0.00043949]
[1739896752033,0.01649716,94967.0,94960.0,0.00043949]
[1739896752608,0.521358,94962.0,94960.0,0.00043949]
[1739896753392,0.10250365,94961.0,94960.0,0.00060969]
[1739896753550,0.157972,94953.0,94941.0,0.0003329]
[1739896753907,0.18840835,94953.0,94952.0,0.13361799]
[1739896754112,0.18840835,94953.0,94952.0,0.1266]
[1739896754319,0.290912,94953.0,94952.0,0.1266]
[1739896754517,0.157986,94945.0,94941.0,0.0003329]
[1739896754726,0.290926,94945.0,94941.0,0.0003329]
[1739896754929,0.290926,94945.0,94944.0,0.33014287]
[1739896754930,0.16233635,94945.0,94944.0,0.33014287]
[1739896755134,0.1319,94945.0,94944.0,0.32308884]
[1739896755765,0.0821,94945.0,94944.0,0.32308884]
[1739896756377,0.0766,94957.0,94944.0,0.32308884]
[1739896756734,0.0766,94957.0,94945.0,0.10250365]
[1739896757149,0.0766,94957.0,94944.0,0.32308884]
[1739896757549,1.8634,94962.0,94945.0,0.10250365]
[1739896757980,1.8634,94962.0,94946.0,0.15]
[1739896758406,1.8634,94962.0,94947.0,0.10250365]
[1739896758608,1.8634,94962.0,94950.0,0.023]
[1739896758814,1.8634,94962.0,94952.0,0.023]
[1739896759049,1.8634,94962.0,94954.0,0.15]
[1739896759268,1.8634,94962.0,94956.0,0.15]
[1739896759484,1.8634,94962.0,94959.0,0.157962]
[1739896759697,1.8634,94962.0,94960.0,0.27550365]
[1739896759900,1.8634,94962.0,94960.0,0.59244136]
[1739896762336,1.8634,94962.0,94960.0,0.75040236]
[1739896762752,1.8634,94962.0,94960.0,0.25250365]
[1739896763131,1.8634,94962.0,94960.0,1.28750236]
[1739896763335,1.8634,94962.0,94960.0,1.30750236]
[1739896763539,1.8634,94962.0,94960.0,1.40860236]
[1739896763745,1.8634,94962.0,94960.0,1.44023936]
[1739896763960,0.00098554,94962.0,94961.0,0.481959]
[1739896764165,0.0805,95034.0,94981.0,0.023]
[1739896764316,0.0003412,95030.0,95006.0,0.15]
[1739896764506,0.0003412,95030.0,95009.0,0.023]
[1739896764682,0.0003412,95030.0,95011.0,0.023]
[1739896764886,0.0003412,95030.0,95019.0,0.157863]
[1739896765104,2.33227051,95020.0,95019.0,0.49780071]
[1739896765303,2.33227051,95020.0,95019.0,0.60030436]
[1739896765507,2.33227051,95020.0,95019.0,0.44244136]